bitfinex/quotes_SOLUSD_20241222
["timestamp","ask_amount","ask_price","bid_price","bid_amount"]
[1734871255361,20.0,187.15,187.05,6.4972]
[1734871255661,23.776884,187.14,187.05,6.4972]
[1734871256362,20.0,187.11,187.05,6.4972]
[1734871263072,2.12672565,187.16,187.05,6.4972]
[1734871263271,5.3428,187.17,187.05,6.4972]
[1734871264084,10.1680939,187.22,187.05,6.4972]
[1734871264247,23.776884,187.2,187.05,6.4972]
[1734871264668,23.776884,187.16,187.05,6.4972]
[1734871264858,20.0,187.13,187.05,6.4972]
[1734871277386,20.0,187.18,187.05,6.4972]
[1734871277686,20.0,187.17,187.06,1.5249]
[1734871278474,25.3427,187.17,187.06,1.5249]
[1734871278781,23.776884,187.16,187.06,1.5249]
[1734871279674,20.0,187.13,187.06,1.5249]
[1734871280066,20.0,187.09,187.05,6.4972]
[1734871281184,20.0,187.09,187.02,1.5672]
[1734871281390,23.776884,187.08,187.02,1.5672]
[1734871282288,20.0,187.05,187.02,1.5672]
[1734871285073,23.776884,187.08,187.0,6.0746]
[1734871289309,20.0,187.08,187.0,6.0746]
[1734871289608,20.0,187.11,187.0,6.0746]
[1734871291115,20.0,187.03,187.0,6.0746]
[1734871291276,20.0,187.03,186.98,1.5672]
[1734871291595,43.776884,187.02,186.98,1.5672]
[1734871292710,20.0,187.02,186.98,1.5672]
[1734871293277,23.776884,187.01,186.98,1.5672]
[1734871295612,23.776884,187.01,186.96,6.0746]
[1734871295812,20.0,186.95,186.94,0.6922441]
[1734871297520,23.776884,186.97,186.94,0.6922441]
[1734871300302,43.776884,187.01,186.94,0.6922441]
[1734871300516,23.776884,187.0,186.94,0.6922441]
[1734871300704,23.776884,186.96,186.94,0.6922441]
[1734871303925,20.0,186.97,186.94,0.6922441]
[1734871304137,20.0,186.97,186.94,2.3171441]
[1734871304427,20.0,187.01,186.94,2.3171441]
[1734871305230,20.0,186.97,186.94,2.3171441]
[1734871307334,20.0,186.97,186.94,0.6922441]
[1734871308838,20.0,186.96,186.94,0.6922441]
[1734871309132,23.776884,186.95,186.94,0.6922441]
[1734871310214,20.0,186.88,186.77,13.3851]
[1734871310615,20.0,186.88,186.78,7.6168]
[1734871311503,20.0,186.88,186.78,8.41968313]
[1734871311704,20.0,186.9,186.79,23.776884]
[1734871311904,5.3475,187.0,186.8,14.9527]
[1734871312126,20.0,186.97,186.82,6.0473]
[1734871312329,5.3475,187.0,186.84,1.5695]
[1734871313714,23.776884,186.99,186.84,1.5695]
[1734871314118,20.0,186.96,186.84,1.5695]
[1734871314636,20.0,186.96,186.85,6.0473]
[1734871317342,5.42733574,187.03,186.87,7.6168]
[1734871317520,5.42733574,187.03,186.88,23.776884]
[1734871318214,5.42733574,187.03,186.87,7.6168]
[1734871318542,20.0,187.0,186.87,7.6168]
[1734871318857,20.0,186.99,186.87,7.6168]
[1734871320649,20.0,187.0,186.88,37.154384]
[1734871321216,20.0,187.0,186.89,8.2528]
[1734871324142,0.08053574,187.03,186.9,181.90815397]
[1734871324317,1.73916156,187.08,186.96,6.6066]
[1734871324521,0.08053574,187.1,186.96,6.6066]
[1734871324522,5.3451,187.09,186.96,6.6066]
[1734871325814,20.0,187.06,186.96,6.6066]
[1734871331057,20.0,187.04,186.96,6.6066]
[1734871331554,20.0,187.01,186.96,6.6066]
[1734871337259,12.77167703,187.11,186.96,6.6066]
[1734871337558,12.77167703,187.11,186.97,1.5144]
[1734871337729,8.35940993,187.11,186.97,1.5144]
[1734871337934,5.3435,187.14,186.97,1.5144]
[1734871338437,18.7163,187.14,186.97,1.5144]
[1734871338645,23.776884,187.13,186.97,1.5144]
[1734871339660,25.3447,187.1,186.97,1.5144]
[1734871341858,20.0,187.05,186.97,1.5144]
[1734871343581,20.0,187.03,186.97,1.5144]
[1734871347145,20.0,187.06,186.97,1.5144]
[1734871351569,5.3457,187.07,186.97,1.5144]
[1734871351880,20.0,187.04,186.97,1.5144]
[1734871354183,20.0,187.04,186.98,6.6004]
[1734871360279,20.0,187.0,186.87,13.3779]
[1734871360575,20.0,187.0,186.84,149.0803]
[1734871361484,5.3478,186.99,186.84,149.0803]
[1734871361784,20.0,186.96,186.85,23.776884]
[1734871362170,20.0,186.96,186.85,24.57941671]
[1734871363367,20.0,186.96,186.87,1.6392]
[1734871367199,5.3471,187.02,186.88,159.476884]
[1734871367362,5.3471,187.02,186.91,6.141]
[1734871368787,20.0,187.03,186.91,6.94329349]
[1734871368989,5.3462,187.05,186.93,1.6392]
[1734871369293,5.3462,187.05,186.93,2.44136197]
[1734871370493,20.0,187.02,186.93,2.44136197]
[1734871372691,20.0,187.06,186.94,159.476884]
[1734871372890,20.0,187.06,186.96,23.776884]
[1734871373519,20.0,187.06,186.95,0.80207511]
[1734871373671,20.0,187.04,186.94,23.776884]
[1734871375131,20.0,187.06,186.96,23.776884]
[1734871377099,20.0,187.06,186.94,135.7]
[1734871377413,20.0,187.05,186.95,23.776884]
[1734871377920,20.0,187.05,186.94,23.776884]
[1734871378796,20.0,187.05,186.94,24.57902202]
[1734871380106,1.5134,187.08,186.94,37.95162202]
[1734871381109,1.5134,187.08,186.94,173.65162202]
[1734871381404,1.5134,187.08,186.94,172.849484]
[1734871381605,20.0,187.06,186.96,23.776884]
[1734871381805,20.0,187.06,186.97,0.80198036]
[1734871382310,20.0,187.06,186.95,0.80198421]
[1734871383285,20.0,187.06,186.96,23.776884]
[1734871383487,20.0,187.06,186.97,0.80200985]
[1734871384529,1.5134,187.08,186.99,23.776884]
[1734871385550,1.5134,187.08,186.99,0.80192563]
[1734871385940,2.13300393,187.11,187.0,23.776884]
[1734871386112,6.8694,187.12,187.01,0.80185229]
[1734871387125,20.0,187.1,187.01,0.80185229]
[1734871388232,0.08053574,187.14,187.02,23.776884]
[1734871388542,1.5252,187.16,187.04,23.776884]
[1734871388847,1.5252,187.16,187.06,23.776884]
[1734871389043,1.5252,187.16,187.07,0.80162381]
[1734871389840,1.5252,187.16,187.05,135.7]
[1734871390044,6.8684,187.16,187.05,135.7]
[1734871390540,20.0,187.15,187.06,0.80171081]
[1734871391030,1.5252,187.16,187.06,0.80171081]
[1734871392318,20.0,187.15,187.06,0.80171081]
[1734871392714,20.0,187.15,187.05,135.7]
[1734871392910,20.0,187.14,187.05,135.7]
[1734871393117,20.0,187.14,187.0,137.2848]
[1734871393425,20.0,187.14,187.01,0.80177771]
[1734871394326,20.0,187.14,187.02,23.776884]
[1734871394517,20.0,187.14,187.03,0.80173098]
[1734871395133,20.0,187.14,187.04,23.776884]
[1734871395327,20.0,187.14,187.06,23.776884]
[1734871395512,10.09857149,187.22,187.07,2.38639072]
[1734871395513,20.0,187.15,187.07,2.38639072]
[1734871395698,1.5252,187.21,187.08,23.776884]
[1734871395901,1.5252,187.21,187.09,0.80146415]
[1734871396205,1.5252,187.21,187.1,23.776884]
[1734871396411,8.35940993,187.24,187.12,23.776884]
[1734871396615,13.70030993,187.24,187.11,135.7]
[1734871396814,5.3409,187.24,187.11,135.7]
[1734871397603,5.3409,187.24,187.12,23.776884]
[1734871397804,5.3409,187.24,187.12,24.57824769]
[1734871398429,20.0,187.23,187.12,160.27824769]
[1734871398599,20.0,187.23,187.12,159.476884]
[1734871398804,20.0,187.23,187.14,23.776884]
[1734871399347,1.5252,187.25,187.15,0.80127686]
[1734871399504,1.5252,187.25,187.16,23.776884]
[1734871399930,1.6066,187.29,187.18,23.776884]
[1734871400106,0.6066,187.29,187.18,23.776884]
[1734871400308,5.9459,187.29,187.16,135.7]
[1734871401147,20.0,187.26,187.14,1.5699]
[1734871401639,25.3401,187.27,187.14,1.5699]
[1734871401933,20.0,187.23,187.09,7.5923]
[1734871402121,20.0,187.23,187.09,8.39374941]
[1734871403312,20.0,187.23,187.1,23.776884]
[1734871403506,20.0,187.23,187.11,0.801384]
[1734871403707,20.0,187.23,187.12,159.476884]
[1734871404009,20.0,187.24,187.14,159.476884]
[1734871404212,0.6066,187.29,187.16,23.776884]
[1734871404410,0.6066,187.29,187.17,0.80117177]
[1734871404619,0.6066,187.29,187.16,23.776884]
[1734871404825,0.6066,187.29,187.16,24.57811296]
[1734871405212,0.6066,187.29,187.16,26.14801296]
[1734871406033,0.6066,187.29,187.18,23.776884]
[1734871406232,5.3382,187.33,187.2,23.776884]
[1734871406427,5.3382,187.33,187.21,0.8009539]
[1734871406818,5.3382,187.33,187.22,23.776884]
[1734871407018,1.609,187.34,187.22,23.776884]
[1734871407234,1.609,187.34,187.24,23.776884]
[1734871407431,1.609,187.34,187.25,0.80081387]
[1734871408711,10.0,187.38,187.26,23.776884]
[1734871408925,10.0,187.38,187.28,23.776884]
[1734871409215,10.0,187.38,187.3,23.776884]
[1734871409411,10.0,187.38,187.31,0.80056601]
[1734871409917,10.0,187.38,187.3,23.776884]
[1734871410325,10.0,187.38,187.29,23.776884]
[1734871410632,10.0,187.38,187.31,23.776884]
[1734871411446,10.0,187.38,187.31,24.57741371]
[1734871411814,10.0,187.38,187.31,160.27741371]
[1734871412016,10.0,187.38,187.31,159.476884]
[1734871412241,10.0,187.38,187.31,161.086584]
[1734871414639,10.0,187.38,187.26,137.3097]
[1734871414813,20.0,187.35,187.27,0.80066491]
[1734871415014,20.0,187.35,187.27,136.50066491]
[1734871415231,20.0,187.35,187.27,135.7]
[1734871417946,20.0,187.35,187.23,23.776884]
[1734871418125,20.0,187.35,187.24,0.80085748]
[1734871418332,25.3376,187.35,187.22,137.3097]
[1734871419425,5.3384,187.33,187.2,6.3368]
[1734871419743,20.0,187.3,187.2,6.3368]
[1734871420147,20.0,187.3,187.19,0.80105243]
[1734871420644,20.0,187.29,187.17,137.3146]
[1734871420845,20.0,187.28,187.17,1.6146]
[1734871421544,1.5627,187.27,187.16,0.80116742]
[1734871423122,1.5627,187.27,187.17,23.776884]
[1734871423746,1.5627,187.27,187.17,24.57803299]
[1734871424118,1.5627,187.27,187.16,135.7]
[1734871424119,20.0,187.26,187.16,135.7]
[1734871428756,20.0,187.26,187.12,7.8064]
[1734871428757,20.0,187.26,187.13,23.776884]
[1734871428925,20.0,187.26,187.15,23.776884]
[1734871429847,20.0,187.26,187.14,23.776884]
[1734871432059,20.0,187.26,187.14,159.476884]
[1734871432752,20.0,187.26,187.16,23.776884]
[1734871432932,20.0,187.26,187.17,0.80114853]
[1734871438258,20.0,187.26,187.17,136.50114853]
[1734871438440,20.0,187.26,187.18,23.776884]
[1734871438639,1.5627,187.27,187.2,159.476884]
[1734871442075,21.5627,187.27,187.2,135.7]
[1734871442659,1.5627,187.27,187.2,135.7]
[1734871443461,20.0,187.25,187.2,135.7]
[1734871444059,20.0,187.25,187.15,20.0]
[1734871444238,20.0,187.25,187.16,159.476884]
[1734871444437,20.0,187.25,187.16,135.7]
[1734871444939,20.0,187.25,187.17,0.80117216]
[1734871445666,1.5627,187.27,187.17,0.80117216]
[1734871446854,1.5627,187.27,187.18,23.776884]
[1734871448169,20.0,187.26,187.16,135.7]
[1734871450061,20.0,187.26,187.15,23.776884]
[1734871450253,20.0,187.26,187.16,0.80120583]
[1734871453980,20.0,187.26,187.14,135.7]
[1734871454280,20.0,187.22,187.13,23.776884]
[1734871454490,21.6066,187.21,187.12,135.7]
[1734871455985,21.6066,187.21,187.08,149.0629]
[1734871456161,21.6066,187.21,187.1,23.776884]
[1734871456781,21.6066,187.21,187.1,159.476884]
[1734871456985,20.0,187.2,187.1,159.476884]
[1734871457368,20.0,187.2,187.11,0.80142594]
[1734871457900,20.0,187.2,187.1,159.476884]
[1734871464195,26.9483,187.21,187.1,135.7]
[1734871464588,26.9483,187.21,187.08,135.7]
[1734871464792,26.9483,187.21,187.06,135.7]
[1734871464793,20.0,187.17,187.06,135.7]
[1734871465296,20.0,187.16,187.06,135.7]
[1734871465463,20.0,187.16,187.07,0.80164068]
[1734871466183,20.0,187.16,187.08,23.776884]
[1734871466499,20.0,187.16,187.09,0.80151148]
[1734871467995,20.0,187.16,187.06,135.7]
[1734871468891,25.3428,187.17,187.06,135.7]
[1734871471098,1.6486,187.16,187.06,135.7]
[1734871479504,1.6486,187.16,187.07,23.776884]
[1734871479678,7.705,187.2,187.08,0.12549]
[1734871480004,1.5307,187.2,187.11,0.12549]
[1734871480215,6.2717,187.24,187.12,159.476884]
[1734871480384,6.2717,187.24,187.14,23.776884]
[1734871481077,6.2717,187.24,187.12,135.7]
[1734871481278,11.6126,187.24,187.12,135.7]
[1734871482308,11.6126,187.24,187.1,23.776884]
[1734871482509,20.0,187.21,187.1,23.776884]
[1734871482680,20.0,187.21,187.1,24.57837934]
[1734871483504,20.0,187.21,187.09,135.7]
[1734871483802,1.5307,187.2,187.09,135.7]
[1734871491224,20.0,187.16,187.07,23.776884]
[1734871492013,20.0,187.16,187.07,24.57848485]
[1734871495321,20.0,187.16,187.07,160.27848485]
[1734871495614,20.0,187.16,187.07,159.476884]
[1734871496712,20.0,187.16,187.07,135.7]
[1734871501227,20.0,187.16,187.04,23.776884]
[1734871501427,20.0,187.16,187.04,24.57856235]
[1734871503332,1.6152,187.15,187.04,24.57856235]
[1734871507429,1.6152,187.15,187.04,160.27856235]
[1734871507628,1.6152,187.15,187.0,150.6342]
[1734871507629,20.0,187.11,187.0,150.6342]
[1734871507832,20.0,187.11,187.0,135.7]
[1734871509226,20.0,187.07,187.0,135.7]
[1734871509533,20.0,187.07,186.97,135.7]
[1734871509718,1.5953,187.06,186.97,135.7]
[1734871509916,6.0478,187.05,186.97,135.7]
[1734871510236,20.0,187.02,186.92,144.04681052]
[1734871510433,20.0,187.02,186.92,135.7]
[1734871513322,1.5953,187.01,186.92,135.7]
[1734871514636,21.5953,187.01,186.92,135.7]
[1734871515016,26.9427,187.01,186.87,135.7]
[1734871515339,20.0,186.97,186.87,135.7]
[1734871517034,1.5953,186.96,186.87,135.7]
[1734871517432,20.0,186.95,186.83,135.7]
[1734871517630,6.0478,186.94,186.83,135.7]
[1734871518128,20.0,186.91,186.83,135.7]
[1734871519229,6.0478,186.94,186.84,24.57952066]
[1734871521354,1.5953,186.96,186.88,23.776884]
[1734871521524,1.5953,186.96,186.89,136.50225902]
[1734871521725,1.5953,186.96,186.9,23.776884]
[1734871522154,1.5953,186.96,186.91,0.80229494]
[1734871522325,6.4122,186.98,186.91,0.80229494]
[1734871523366,6.4122,186.98,186.91,136.50229494]
[1734871523665,6.4122,186.98,186.91,135.7]
[1734871524277,6.4122,186.98,186.92,0.80225322]
[1734871525874,1.5117,187.01,186.92,136.50225322]
[1734871526172,1.5117,187.01,186.93,23.776884]
[1734871526359,1.5117,187.01,186.94,0.80208234]
[1734871526873,1.5117,187.01,186.95,23.776884]
[1734871527566,1.5736,187.05,186.97,23.776884]
[1734871527797,1.5736,187.09,186.99,23.776884]
[1734871527951,1.5736,187.09,187.01,23.776884]
[1734871528155,6.4516,187.11,187.03,23.776884]
[1734871528370,6.4516,187.11,187.04,0.80167858]
[1734871528562,6.4516,187.11,187.02,23.776884]
[1734871529371,6.4516,187.11,187.02,24.5786933]
[1734871529673,6.4516,187.11,187.02,37.9461933]
[1734871529974,1.6325,187.14,187.03,0.12549]
[1734871530174,1.6325,187.14,187.05,23.776884]
[1734871530381,1.6325,187.14,187.06,0.80156369]
[1734871530675,5.3407,187.25,187.1,20.0]
[1734871530877,5.3407,187.25,187.11,24.57826029]
[1734871531171,5.3407,187.25,187.11,0.80137629]
[1734871531388,5.3407,187.25,187.08,23.776884]
[1734871531551,1.6325,187.23,187.03,13.3661]
[1734871531750,6.3112,187.22,187.02,20.80144943]
[1734871531963,30.088084,187.2,187.02,20.80144943]
[1734871532877,1.6325,187.12,187.0,0.80173994]
[1734871533049,6.3112,187.11,187.0,0.80173994]
[1734871534276,6.3112,187.11,187.01,23.776884]
[1734871534473,6.3112,187.11,187.02,0.80181578]
[1734871535254,6.3112,187.11,187.0,0.80182633]
[1734871535456,6.3112,187.11,186.98,20.0]
[1734871535764,6.3112,187.11,186.99,0.80188581]
[1734871537176,6.3112,187.11,187.0,23.776884]
[1734871537481,6.3112,187.11,187.01,0.80177294]
[1734871538282,6.3112,187.11,187.02,23.776884]
[1734871538456,6.3112,187.11,187.03,0.80173017]
[1734871538658,6.3112,187.11,187.04,23.776884]
[1734871539191,6.27609515,187.11,187.04,23.776884]
[1734871539575,6.27609515,187.11,187.05,136.5016575]
[1734871539766,1.6325,187.12,187.05,135.7]
[1734871542495,1.6325,187.12,187.06,24.57851647]
[1734871543178,6.2909,187.15,187.06,160.27851647]
[1734871543490,6.2909,187.15,187.06,159.476884]
[1734871543699,6.2909,187.15,187.08,23.776884]
[1734871543994,6.2909,187.15,187.09,0.80144499]
[1734871544892,1.6054,187.17,187.1,159.476884]
[1734871545101,1.6054,187.17,187.11,0.8013823]
[1734871545268,1.6054,187.17,187.11,136.5013823]
[1734871545473,6.2909,187.2,187.11,135.7]
[1734871546095,6.2909,187.2,187.12,159.476884]
[1734871546394,1.6054,187.22,187.13,136.50126167]
[1734871546608,1.6054,187.22,187.14,23.776884]
[1734871546773,1.6054,187.22,187.16,23.776884]
[1734871547278,1.6054,187.22,187.15,0.80116533]
[1734871547486,1.6054,187.22,187.13,135.7]
[1734871547791,1.6054,187.22,187.14,24.57821344]
[1734871550195,21.6054,187.22,187.14,24.57821344]
[1734871552413,21.6054,187.22,187.14,160.27821344]
[1734871552714,21.6054,187.22,187.14,159.476884]
[1734871553009,21.6054,187.22,187.14,135.7]
[1734871553378,20.0,187.21,187.14,135.7]
[1734871560723,1.6054,187.22,187.15,0.80129625]
[1734871561418,1.6054,187.22,187.15,136.50129625]
[1734871561612,1.6054,187.22,187.15,135.7]
[1734871562424,6.2909,187.25,187.16,24.57810877]
[1734871562606,6.2909,187.25,187.16,160.27810877]
[1734871562809,6.2909,187.25,187.16,159.476884]
[1734871563015,1.6328,187.27,187.18,23.776884]
[1734871563318,1.6328,187.27,187.19,0.80102571]
[1734871563696,1.6328,187.27,187.18,23.776884]
[1734871563697,1.6328,187.27,187.17,135.7]
[1734871564126,6.9729,187.27,187.13,135.7]
[1734871564283,23.776884,187.26,187.13,135.7]
[1734871564706,20.0,187.23,187.13,135.7]
[1734871565086,6.367,187.22,187.13,135.7]
[1734871566854,1.6328,187.21,187.09,135.7]
[1734871567019,20.0,187.19,187.09,135.7]
[1734871567913,20.0,187.17,187.03,137.2857]
[1734871568249,6.367,187.16,187.04,0.80167765]
[1734871570526,21.6328,187.13,187.04,136.50167765]
[1734871570731,21.6328,187.13,187.04,135.7]
[1734871574128,20.0,187.11,187.04,135.7]
[1734871574626,1.6328,187.13,187.04,135.7]
[1734871574829,20.0,187.11,186.98,150.6554]
[1734871575130,20.0,187.05,186.99,135.7]
[1734871575428,1.6328,187.04,186.94,135.7]
[1734871576430,1.6328,187.04,186.95,0.8021204]
[1734871577345,7.9998,187.08,186.99,135.82549]
[1734871577543,1.6328,187.08,187.0,24.57862435]
[1734871577750,7.9998,187.13,187.0,160.27862435]
[1734871578055,7.9998,187.13,187.0,159.476884]
[1734871578617,7.9998,187.13,187.0,172.845184]
[1734871579113,7.9998,187.13,187.02,23.776884]
[1734871579316,7.9998,187.13,187.03,0.8016962]
[1734871580374,7.9998,187.13,187.04,136.50167085]
[1734871580516,7.9998,187.13,187.04,135.7]
[1734871580814,7.9998,187.13,187.05,0.80166925]
[1734871581142,7.9998,187.13,187.05,136.50166925]
[1734871581314,7.9998,187.13,187.05,135.7]
[1734871581515,20.0,187.1,187.05,135.7]
[1734871582140,19.47,187.1,187.05,135.7]
[1734871582537,19.47,187.1,187.0,135.7]
[1734871582738,19.47,187.1,187.01,0.80194567]
[1734871582915,7.9998,187.13,187.01,136.50194567]
[1734871583209,7.9998,187.13,187.01,135.7]
[1734871583413,7.9998,187.13,187.02,0.80172231]
[1734871584538,7.9998,187.13,187.03,23.902374]
[1734871584735,7.9998,187.13,187.05,23.776884]
[1734871585047,7.9998,187.13,187.06,0.80157611]
[1734871585751,8.35940993,187.25,187.1,20.0]
[1734871586047,8.35940993,187.25,187.18,20.0]
[1734871586255,8.35940993,187.25,187.19,136.50107173]
[1734871586423,8.35940993,187.25,187.19,135.7]
[1734871586855,8.5119,187.32,187.19,135.7]
[1734871587355,20.0,187.29,187.19,135.7]
[1734871587537,20.0,187.29,187.2,0.80101098]
[1734871587730,8.5119,187.32,187.2,0.80101098]
[1734871587930,8.5119,187.32,187.21,23.776884]
[1734871588144,8.5119,187.32,187.23,159.476884]
[1734871588338,8.5119,187.32,187.24,0.80077583]
[1734871591454,8.5119,187.32,187.24,136.50077583]
[1734871591750,8.5119,187.32,187.24,135.7]
[1734871593155,20.0,187.29,187.2,135.7]
[1734871596331,23.776884,187.28,187.18,135.7]
[1734871596538,20.0,187.25,187.18,135.7]
[1734871596739,20.0,187.25,187.19,0.80117132]
[1734871597249,1.5113,187.28,187.19,0.80117132]
[1734871597563,20.0,187.29,187.19,136.50117132]
[1734871597763,20.0,187.29,187.19,135.7]
[1734871597938,20.0,187.29,187.2,136.50098498]
[1734871598270,8.5119,187.32,187.2,135.7]
[1734871598447,8.5119,187.32,187.21,0.80093189]
[1734871599742,20.0,187.29,187.21,0.80093189]
[1734871600664,20.0,187.29,187.21,136.50093189]
[1734871600868,20.0,187.29,187.21,135.7]
[1734871608974,25.3393,187.29,187.21,135.7]
[1734871609358,25.3393,187.29,187.14,155.1162]
[1734871609676,25.3393,187.29,187.15,0.80118294]
[1734871610261,23.776884,187.28,187.15,0.80118294]
[1734871610463,1.556,187.24,187.15,135.7]
[1734871610667,6.02,187.23,187.15,135.7]
[1734871613665,20.0,187.2,187.15,135.7]
[1734871614668,20.0,187.2,187.1,135.7]
[1734871615079,20.0,187.16,187.1,135.7]
[1734871616183,20.0,187.16,187.04,135.7]
[1734871616391,20.0,187.14,187.04,135.7]
[1734871617783,26.02,187.14,187.04,135.7]
[1734871618279,20.0,187.1,187.0,135.7]
[1734871620298,20.0,187.11,187.01,0.8018804]
[1734871620464,6.02,187.14,187.03,0.12549]
[1734871620793,1.556,187.15,187.04,159.476884]
[1734871620998,1.556,187.15,187.05,0.80154173]
[1734871621166,6.6092,187.18,187.06,23.776884]
[1734871621497,6.6092,187.18,187.07,0.80152741]
[1734871623207,6.6092,187.18,187.07,136.50152741]
[1734871623370,6.6092,187.18,187.07,137.3004]
[1734871623695,1.5024,187.2,187.08,159.602374]
[1734871623860,1.5024,187.2,187.1,159.476884]
[1734871624066,6.6092,187.22,187.12,159.476884]
[1734871624266,6.6092,187.22,187.13,0.80123691]
[1734871624768,6.6092,187.22,187.12,135.7]
[1734871625595,20.0,187.18,187.12,135.7]
[1734871632192,21.6331,187.17,187.12,135.7]
[1734871633393,21.6331,187.17,187.04,155.0792]
[1734871633597,21.6331,187.17,187.05,24.57847872]
[1734871634188,21.6331,187.17,187.07,23.776884]
[1734871634495,21.6331,187.17,187.08,136.50146132]
[1734871634698,21.6331,187.17,187.08,135.7]
[1734871636604,20.0,187.15,187.08,135.7]
[1734871637320,1.6331,187.17,187.09,0.80152606]
[1734871637696,1.6331,187.17,187.09,136.50152606]
[1734871637915,8.2423,187.22,187.1,1.70619]
[1734871638213,8.2423,187.22,187.12,23.776884]
[1734871638407,8.2423,187.22,187.13,136.50127409]
[1734871638708,8.2423,187.22,187.13,135.7]
[1734871639116,20.0,187.19,187.13,135.7]
[1734871639495,8.2423,187.22,187.13,135.7]
[1734871641112,20.0,187.19,187.13,135.7]
[1734871643612,20.0,187.18,187.08,135.7]
[1734871644207,20.0,187.15,187.08,135.7]
[1734871644904,6.1643,187.13,187.08,135.7]
[1734871645281,6.1643,187.13,187.0,1.6424]
[1734871645282,6.1643,187.13,187.0,137.3424]
[1734871645510,20.0,187.1,187.01,0.80179018]
[1734871646513,20.0,187.1,187.01,135.7]
[1734871646688,20.0,187.09,187.01,135.7]
[1734871647821,21.6169,187.06,186.95,135.7]
[1734871648211,20.0,187.02,186.95,135.7]
[1734871648386,20.0,187.02,186.96,0.80205696]
[1734871649619,20.0,187.02,186.95,135.7]
[1734871652019,6.1643,187.05,186.96,0.80205606]
[1734871652201,6.1643,187.05,186.96,136.50205606]
[1734871652407,1.6169,187.06,186.96,135.7]
[1734871652618,1.6169,187.06,186.97,0.80194994]
[1734871654040,6.1643,187.09,186.98,23.776884]
[1734871654246,6.1643,187.09,187.0,23.776884]
[1734871654413,6.1643,187.09,187.01,136.50176307]
[1734871654747,6.1643,187.09,187.01,135.7]
[1734871655611,6.1643,187.09,187.02,0.80176931]
[1734871655813,1.6169,187.11,187.02,0.80176931]
[1734871656227,20.0,187.1,187.02,0.80176931]
[1734871657435,20.0,187.09,187.01,135.7]
[1734871657637,20.0,187.1,187.01,135.7]
[1734871658528,25.3449,187.1,187.01,135.7]
[1734871662143,1.6169,187.11,187.02,0.80192618]
[1734871663022,1.6169,187.11,187.01,135.7]
[1734871663312,6.9615,187.11,187.01,135.7]
[1734871663531,20.0,187.08,187.01,135.7]
[1734871664124,20.0,187.1,187.01,135.7]
[1734871664319,20.0,187.06,187.01,135.7]
[1734871665348,6.6168,187.05,187.01,135.7]
[1734871665555,20.0,187.02,186.93,137.3424]
[1734871666145,20.0,187.02,186.94,0.80218826]
[1734871666824,6.6168,187.05,186.94,0.80218826]
[1734871667253,6.6168,187.05,186.95,23.776884]
[1734871667542,6.6168,187.05,186.96,0.80194947]
[1734871667746,20.0,187.06,186.96,136.50194947]
[1734871667967,20.0,187.06,186.96,135.7]
[1734871669031,20.0,187.06,186.97,0.80195028]
[1734871670156,6.6168,187.09,186.98,23.776884]
[1734871670446,6.6168,187.09,186.99,0.80181961]